bitfinex/quotes_BTCUSD_20241111
["timestamp","ask_amount","ask_price","bid_price","bid_amount"]
[1731344940114,0.005,84512.0,84489.0,0.11994075]
[1731344940845,0.001894,84509.0,84489.0,0.11994075]
[1731344941654,0.075,84507.0,84489.0,0.11994075]
[1731344941904,0.07476825,84507.0,84489.0,0.11994075]
[1731344942093,0.07476825,84507.0,84492.0,0.005]
[1731344942304,0.001894,84509.0,84495.0,0.26422233]
[1731344942508,0.001894,84509.0,84496.0,0.11994075]
[1731344943291,0.001894,84509.0,84505.0,0.26422233]
[1731344943496,0.001894,84509.0,84506.0,0.12230699]
[1731344944418,0.001894,84509.0,84506.0,0.11994075]
[1731344945955,0.001894,84509.0,84496.0,0.04292778]
[1731344946192,0.001894,84509.0,84497.0,0.38416308]
[1731344946608,0.001894,84509.0,84497.0,0.11994075]
[1731344947465,0.001894,84509.0,84497.0,0.38416308]
[1731344947835,0.001894,84509.0,84506.0,0.26422233]
[1731344948036,0.001894,84509.0,84507.0,0.11994075]
[1731344948237,0.001894,84509.0,84508.0,0.00736624]
[1731344948467,0.001894,84509.0,84508.0,0.12494075]
[1731344949073,0.1,84520.0,84509.0,0.005]
[1731344949271,0.1,84520.0,84510.0,0.11994075]
[1731344949822,0.1,84520.0,84511.0,0.00736612]
[1731344950038,0.1,84520.0,84512.0,0.11994075]
[1731344952167,0.1,84520.0,84507.0,0.03892904]
[1731344952385,0.1,84520.0,84508.0,0.12230699]
[1731344952812,0.1,84520.0,84508.0,0.12494075]
[1731344953020,0.1,84520.0,84510.0,0.007]
[1731344953242,0.1,84520.0,84508.0,0.11994075]
[1731344953243,0.100847,84520.0,84511.0,0.12730676]
[1731344953687,0.100847,84520.0,84519.0,0.14794075]
[1731344953907,0.000671,84531.0,84528.0,0.29222233]
[1731344954130,0.000671,84531.0,84528.0,0.41216308]
[1731344954600,0.000671,84531.0,84528.0,0.45068927]
[1731344954820,0.000671,84534.0,84533.0,0.005]
[1731344955102,0.000671,84534.0,84533.0,0.22600591]
[1731344955327,0.000671,84534.0,84533.0,0.12494075]
[1731344955544,0.0034,84545.0,84533.0,0.12494075]
[1731344955754,0.0034,84545.0,84534.0,0.11994075]
[1731344956179,0.0034,84545.0,84535.0,0.00236552]
[1731344956400,0.0034,84545.0,84536.0,0.11994075]
[1731344957250,0.0034,84545.0,84537.0,0.028]
[1731344957493,0.0034,84545.0,84537.0,0.14794075]
[1731344958153,0.0034,84545.0,84537.0,0.11994075]
[1731344958575,0.0034,84545.0,84537.0,0.14794075]
[1731344959879,0.0034,84545.0,84537.0,0.14994075]
[1731344960115,0.0034,84545.0,84537.0,0.11994075]
[1731344960322,0.0034,84545.0,84537.0,0.38416308]
[1731344960747,0.0034,84545.0,84537.0,0.11994075]
[1731344962983,0.0826,84543.0,84531.0,0.03910092]
[1731344963198,0.005,84541.0,84520.0,0.57865121]
[1731344963424,0.002,84535.0,84511.0,0.26422233]
[1731344963664,0.002,84531.0,84512.0,0.11994075]
[1731344963895,0.005,84537.0,84512.0,0.11994075]
[1731344964115,0.00917064,84536.0,84513.0,0.00236587]
[1731344964322,0.00917064,84536.0,84514.0,0.11994075]
[1731344964532,0.002,84530.0,84515.0,0.00236587]
[1731344964950,0.002,84527.0,84514.0,0.11994075]
[1731344965155,0.01417064,84536.0,84515.0,0.00236589]
[1731344965156,0.002,84530.0,84515.0,0.00236589]
[1731344965578,0.002,84534.0,84515.0,0.00236589]
[1731344965786,0.002,84534.0,84533.0,0.001694]
[1731344966003,0.048,84534.0,84533.0,0.001694]
[1731344966410,0.046,84534.0,84533.0,0.001694]
[1731344967680,0.00067,84539.0,84533.0,0.001694]
[1731344967902,0.00067,84539.0,84533.0,0.03975637]
[1731344968123,0.00067,84539.0,84534.0,0.00236563]
[1731344969029,0.00067,84539.0,84537.0,0.26422233]
[1731344969241,0.00067,84539.0,84537.0,0.38416308]
[1731344970378,0.06553199,84538.0,84537.0,0.38416308]
[1731344970561,0.06553199,84538.0,84537.0,0.11994075]
[1731344970732,0.06553199,84538.0,84537.0,0.15881606]
[1731344973361,0.06553199,84538.0,84537.0,0.03887531]
[1731344973573,0.06553199,84538.0,84533.0,0.001694]
[1731344974005,0.06553199,84538.0,84533.0,0.03935134]
[1731344974218,0.06553199,84538.0,84533.0,0.001694]
[1731344975576,0.06553199,84538.0,84533.0,0.12163475]
[1731344976010,0.06553199,84538.0,84533.0,0.15971762]
[1731344976247,0.06553199,84538.0,84533.0,0.03977687]
[1731344976692,0.06553199,84538.0,84534.0,0.00236561]
[1731344977331,0.06637899,84538.0,84534.0,0.00236561]
[1731344977544,0.06637899,84538.0,84533.0,0.03977687]
[1731344978839,0.002,84536.0,84533.0,0.03977687]
[1731344979056,0.0818,84535.0,84533.0,0.03977687]
[1731344979487,0.0838,84535.0,84533.0,0.03977687]
[1731344980131,0.0818,84535.0,84533.0,0.03977687]
[1731344980366,0.08527,84535.0,84533.0,0.03977687]
[1731344980587,0.01436535,84534.0,84533.0,0.001694]
[1731344980801,0.01,84534.0,84533.0,0.001694]
[1731344981216,0.012,84534.0,84533.0,0.001694]
[1731344985343,0.08027,84535.0,84533.0,0.001694]
[1731344985616,0.08527,84535.0,84533.0,0.001694]
[1731344986720,0.08727,84535.0,84533.0,0.001694]
[1731344986945,0.002,84534.0,84533.0,0.001694]
[1731344987149,0.08527,84535.0,84533.0,0.001694]
[1731344987579,0.06637899,84538.0,84533.0,0.26591633]
[1731344987785,0.06637899,84538.0,84533.0,0.38585708]
[1731344988440,0.06637899,84538.0,84533.0,0.001694]
[1731344989104,0.06637899,84538.0,84534.0,0.26422233]
[1731344989349,0.06637899,84538.0,84534.0,0.38652871]
[1731344989577,0.06637899,84538.0,84534.0,0.38416308]
[1731344990482,0.01018248,84538.0,84534.0,0.38416308]
[1731344990713,0.00983948,84538.0,84534.0,0.38416308]
[1731344991620,0.00983948,84538.0,84535.0,0.00236538]
[1731344992037,0.00983948,84538.0,84536.0,0.00884984]
[1731344992247,0.00983948,84538.0,84535.0,0.12230613]
[1731344992653,0.00983948,84538.0,84535.0,0.11994075]
[1731344994614,0.00983948,84538.0,84536.0,0.12230609]
[1731344994818,0.00983948,84538.0,84536.0,0.11994075]
[1731344995247,0.00673023,84538.0,84534.0,0.26422233]
[1731344995472,0.00673023,84538.0,84535.0,0.0023653]
[1731344996369,0.00673023,84538.0,84534.0,0.00236555]
[1731344996602,0.00673023,84538.0,84533.0,0.001694]
[1731344997442,0.002,84534.0,84533.0,0.001694]
[1731344997859,0.0762,84536.0,84533.0,0.001694]
[1731344998310,0.002,84534.0,84533.0,0.001694]
[1731344998523,0.002,84535.0,84533.0,0.001694]
[1731344998720,0.0762,84536.0,84533.0,0.001694]
[1731344999210,0.00673023,84538.0,84533.0,0.001694]
[1731345001876,0.00667556,84538.0,84533.0,0.001694]
[1731345003004,0.00667556,84538.0,84534.0,0.12230611]
[1731345003432,0.00667556,84538.0,84534.0,0.11994075]
[1731345004319,0.00667556,84538.0,84535.0,0.01430418]
[1731345004513,0.00667556,84538.0,84536.0,0.11994075]
[1731345005663,0.00053852,84538.0,84536.0,0.11994075]
[1731345006789,0.00053852,84538.0,84533.0,0.26591633]
[1731345007014,0.00053852,84538.0,84537.0,0.00236519]
[1731345007226,0.00053852,84538.0,84537.0,0.12230596]
[1731345007873,0.0181184,84557.0,84537.0,0.43400421]
[1731345008093,0.0181184,84557.0,84556.0,0.26422233]
[1731345010341,0.0811,84587.0,84556.0,0.38416308]
[1731345010559,0.0811,84587.0,84568.0,0.26422233]
[1731345010777,0.0811,84587.0,84568.0,0.38416308]
[1731345011001,0.0811,84587.0,84569.0,0.11994075]
[1731345011408,0.0811,84587.0,84576.0,0.26422233]
[1731345012104,0.032,84588.0,84576.0,0.26422233]
[1731345012315,0.032,84588.0,84577.0,0.11994075]
[1731345012762,0.032,84588.0,84576.0,0.26422233]
[1731345012994,0.0846,84579.0,84559.0,0.26422233]
[1731345013221,0.012,84573.0,84572.0,0.03886186]
[1731345013468,0.13194075,84573.0,84572.0,0.03886186]
[1731345013662,0.002,84573.0,84572.0,0.26422233]
[1731345013875,0.002,84570.0,84564.0,0.26422233]
[1731345014452,0.002,84570.0,84555.0,0.26422233]
[1731345014655,0.002,84567.0,84556.0,0.11994075]
[1731345014867,0.005,84575.0,84556.0,0.11994075]
[1731345015099,0.0016,84576.0,84555.0,0.26422233]
[1731345015340,0.0016,84567.0,84545.0,0.26422233]
[1731345015538,0.0016,84567.0,84546.0,0.11994075]
[1731345017965,0.0804,84566.0,84545.0,0.26422233]
[1731345018186,0.0016,84562.0,84545.0,0.26422233]
[1731345018422,0.0788,84566.0,84545.0,0.26422233]
[1731345018423,0.05476535,84566.0,84545.0,0.26422233]
[1731345018880,0.05476535,84566.0,84541.0,0.03776441]
[1731345018881,0.11994075,84565.0,84541.0,0.03776441]
[1731345019083,0.11994075,84565.0,84533.0,0.001694]
[1731345019084,0.11994075,84556.0,84533.0,0.001694]
[1731345019280,0.0454,84551.0,84533.0,0.001694]
[1731345019529,0.11994075,84550.0,84533.0,0.001694]
[1731345020010,0.11994075,84548.0,84533.0,0.001694]
[1731345020208,0.005,84534.0,84496.0,0.001694]
[1731345020434,0.16534075,84533.0,84496.0,0.001694]
[1731345020642,0.005,84532.0,84496.0,0.001694]
[1731345020866,0.005,84524.0,84496.0,0.001694]
[1731345021386,0.11994075,84529.0,84496.0,0.001694]
[1731345021387,0.0785,84522.0,84496.0,0.001694]
[1731345021601,0.12829075,84521.0,84496.0,0.001694]
[1731345022037,0.11994075,84521.0,84497.0,0.26422233]
[1731345022249,0.11994075,84521.0,84505.0,0.26422233]
[1731345022658,0.11994075,84521.0,84498.0,0.00236665]
[1731345023422,0.0785,84522.0,84506.0,0.26422233]
[1731345023623,0.0483,84531.0,84507.0,0.00236634]
[1731345023910,0.0483,84531.0,84515.0,0.26422233]
[1731345024084,0.0483,84531.0,84516.0,0.00236612]
[1731345024296,0.0483,84544.0,84516.0,0.00236612]
[1731345024540,0.0483,84544.0,84524.0,0.26422233]
[1731345024747,0.0483,84544.0,84525.0,0.00236583]
[1731345025503,0.0483,84544.0,84504.0,0.26422233]
[1731345025504,0.11994075,84538.0,84504.0,0.26422233]
[1731345025713,0.01207898,84537.0,84496.0,0.32503672]
[1731345025883,0.11994075,84536.0,84499.0,0.005]
[1731345026097,0.11994075,84536.0,84500.0,0.11994075]
[1731345026299,0.11994075,84536.0,84504.0,0.26422233]
[1731345026509,0.11994075,84536.0,84505.0,0.02536628]
[1731345026713,0.01328687,84535.0,84505.0,0.023]
[1731345026929,0.11994075,84534.0,84505.0,0.023]
[1731345028230,0.11994075,84534.0,84506.0,0.00236628]
[1731345029765,0.11994075,84532.0,84496.0,0.001694]
[1731345030030,0.002,84558.0,84496.0,0.001694]
[1731345030031,0.005,84526.0,84496.0,0.001694]
[1731345030264,0.0452,84524.0,84496.0,0.001694]
[1731345030490,0.11994075,84523.0,84496.0,0.04033438]
[1731345030700,0.02251408,84522.0,84496.0,0.04033438]
[1731345030907,0.11994075,84521.0,84496.0,0.001694]
[1731345031612,0.005,84520.0,84496.0,0.001694]
[1731345031833,0.005,84518.0,84496.0,0.001694]
[1731345032046,0.11994075,84517.0,84496.0,0.001694]
[1731345032269,0.12494075,84517.0,84496.0,0.001694]
[1731345032472,0.005,84514.0,84496.0,0.001694]
[1731345032680,0.11994075,84513.0,84496.0,0.001694]
[1731345033104,0.0461,84512.0,84496.0,0.001694]
[1731345033320,0.11994075,84511.0,84496.0,0.001694]
[1731345033523,0.12494075,84509.0,84496.0,0.001694]
[1731345033969,0.11994075,84509.0,84496.0,0.001694]
[1731345036134,0.12494075,84509.0,84496.0,0.001694]
[1731345036396,0.0461,84512.0,84496.0,0.001694]
[1731345036646,0.11994075,84511.0,84496.0,0.001694]
[1731345036858,0.01660408,84510.0,84496.0,0.001694]
[1731345037095,0.11994075,84509.0,84496.0,0.001694]
[1731345039473,0.11994075,84509.0,84497.0,0.00454708]
[1731345040420,0.005,84508.0,84497.0,0.00454708]
[1731345040625,0.11994075,84507.0,84497.0,0.00454708]
[1731345041029,0.01710408,84506.0,84497.0,0.00454708]
[1731345041245,0.005,84508.0,84497.0,0.00454708]
[1731345041246,0.11994075,84505.0,84497.0,0.00454708]
[1731345043800,0.0809,84504.0,84497.0,0.00454708]
[1731345044041,0.0485,84499.0,84497.0,0.00454708]
[1731345044275,0.0485,84499.0,84496.0,0.001694]
[1731345044276,0.11994075,84498.0,84496.0,0.001694]
[1731345047092,0.005,84524.0,84496.0,0.001694]
[1731345047328,0.17770512,84535.0,84496.0,0.001694]
[1731345047329,0.24774075,84523.0,84496.0,0.001694]
[1731345047560,0.16504075,84523.0,84497.0,0.0057001]
[1731345047779,0.11994075,84523.0,84497.0,0.0057001]
[1731345047988,0.000849,84533.0,84499.0,0.0768]
[1731345048197,0.11994075,84532.0,84502.0,0.26422233]
[1731345048411,0.11994075,84532.0,84503.0,0.02536626]
[1731345048412,0.13201973,84532.0,84503.0,0.02536626]
[1731345048615,0.11994075,84532.0,84503.0,0.02536626]
[1731345049945,0.11994075,84532.0,84502.0,0.26422233]
[1731345051536,0.11994075,84532.0,84503.0,0.00236642]
[1731345051766,0.11994075,84532.0,84503.0,0.00328464]
[1731345051995,0.13201973,84532.0,84503.0,0.00328464]
[1731345052230,0.11994075,84532.0,84504.0,0.023]
[1731345052457,0.11994075,84532.0,84505.0,0.00236626]
[1731345052658,0.11994075,84532.0,84505.0,0.00563115]
[1731345052863,0.05357167,84532.0,84505.0,0.00563115]
[1731345053688,0.05357167,84532.0,84505.0,0.00326489]
[1731345057787,0.05357167,84532.0,84502.0,0.30240592]
[1731345058018,0.05357167,84532.0,84502.0,0.03818359]
[1731345058488,0.05357167,84532.0,84499.0,0.0768]
[1731345058725,0.05357167,84532.0,84499.0,0.23423234]
[1731345059374,0.05357167,84532.0,84500.0,0.00236641]
[1731345059584,0.02544207,84531.0,84500.0,0.00236641]
[1731345059816,0.11994075,84530.0,84500.0,0.00236641]
[1731345060236,0.000849,84533.0,84500.0,0.00236641]
[1731345060237,0.000849,84533.0,84520.0,0.26422233]
[1731345060466,0.000849,84533.0,84523.0,0.26422233]
[1731345060689,0.000849,84533.0,84531.0,0.26422233]
[1731345060900,0.000849,84533.0,84532.0,0.00236561]
[1731345061108,0.000849,84533.0,84532.0,0.06164344]
[1731345061938,0.000849,84533.0,84532.0,0.05927783]
[1731345062163,0.000849,84533.0,84532.0,0.18158414]
[1731345062426,0.000849,84539.0,84533.0,0.023]
[1731345062633,0.00236561,84565.0,84558.0,0.26422233]
[1731345062852,0.17770512,84563.0,84558.0,0.26422233]
[1731345063077,0.00236561,84572.0,84558.0,0.26422233]
[1731345063291,0.0781,84577.0,84549.0,0.26422233]
[1731345063292,0.12230636,84571.0,84549.0,0.26422233]
[1731345063527,0.03510984,84605.0,84565.0,0.26422233]
[1731345063528,0.0781,84590.0,84565.0,0.26422233]
[1731345063733,0.0497,84592.0,84579.0,0.26422233]
[1731345063734,0.14730636,84588.0,84579.0,0.26422233]
[1731345063951,0.14730636,84588.0,84576.0,0.26422233]
[1731345064176,0.025,84588.0,84576.0,0.26422233]
[1731345064404,0.025,84588.0,84580.0,0.00308492]
[1731345064636,0.025,84588.0,84577.0,0.00308982]
[1731345064875,0.025,84588.0,84577.0,0.00545434]
[1731345065515,0.00236561,84587.0,84577.0,0.00308982]
[1731345065832,0.00236561,84587.0,84560.0,0.023]
[1731345066087,0.00236561,84587.0,84562.0,0.023]
[1731345066372,0.11994075,84586.0,84560.0,0.03873536]
[1731345066575,0.26422233,84584.0,84563.0,0.0033092]
[1731345066749,0.12230636,84583.0,84563.0,0.0033092]
[1731345066917,0.12230636,84583.0,84548.0,0.00236502]
[1731345067116,0.12230636,84583.0,84549.0,0.11994075]
[1731345067318,0.2,84581.0,84550.0,0.00236502]
[1731345067527,0.12230636,84580.0,84551.0,0.00330224]
[1731345067744,0.12230636,84580.0,84550.0,0.00330388]
[1731345068085,0.12230636,84580.0,84547.0,0.11528773]
[1731345068292,0.2,84578.0,84547.0,0.11528773]
[1731345068511,0.154537,84577.0,84548.0,0.00330552]
[1731345068935,0.154537,84577.0,84549.0,0.00236509]
[1731345069336,0.2,84574.0,84549.0,0.00236509]
[1731345069573,0.12230636,84573.0,84549.0,0.00236509]
[1731345069783,0.12230636,84573.0,84547.0,0.11528773]
[1731345070085,0.15776006,84573.0,84547.0,0.11528773]
[1731345070321,0.2,84570.0,84547.0,0.03918773]
[1731345070530,0.2,84570.0,84535.0,0.001698]
[1731345070531,0.17200636,84569.0,84535.0,0.001698]
[1731345070778,0.11994075,84566.0,84535.0,0.001698]
[1731345070997,0.04006625,84565.0,84535.0,0.001698]
[1731345071202,0.11994075,84564.0,84535.0,0.001698]
[1731345071409,0.00236561,84563.0,84535.0,0.001698]
[1731345071616,0.11994075,84562.0,84535.0,0.001698]
[1731345071836,0.00236561,84561.0,84535.0,0.001698]
[1731345072046,0.13217139,84560.0,84535.0,0.001698]
[1731345072247,0.00236561,84559.0,84535.0,0.001698]
[1731345072456,0.11994075,84558.0,84535.0,0.001698]
[1731345072629,0.00236561,84557.0,84536.0,0.0032955]
[1731345072893,0.24824075,84556.0,84536.0,0.0032955]
[1731345073101,0.02914931,84555.0,84536.0,0.0032955]
[1731345073322,0.11994075,84554.0,84535.0,0.001698]
[1731345073528,0.2,84565.0,84535.0,0.001698]
[1731345073529,0.00236561,84564.0,84542.0,0.26422233]
[1731345073748,0.14017731,84563.0,84542.0,0.26422233]
[1731345073951,0.00236561,84562.0,84542.0,0.26422233]
[1731345074168,0.11994075,84561.0,84535.0,0.001698]
[1731345074389,0.00236561,84560.0,84535.0,0.001698]
[1731345074647,0.11994075,84559.0,84535.0,0.001698]
[1731345074871,0.00236561,84558.0,84535.0,0.001698]
[1731345075106,0.11994075,84557.0,84535.0,0.001698]
[1731345075321,0.00236561,84556.0,84535.0,0.04153703]
[1731345075561,0.11994075,84555.0,84535.0,0.03917144]
[1731345075775,0.00236561,84554.0,84535.0,0.03917144]
[1731345075990,0.11994075,84553.0,84535.0,0.03917144]
[1731345076207,0.11994075,84553.0,84535.0,0.04153707]
[1731345076630,0.00236561,84552.0,84535.0,0.04153707]
[1731345076838,0.11994075,84553.0,84535.0,0.04153706]
[1731345077075,0.00236561,84565.0,84535.0,0.04153706]
[1731345077076,0.00236561,84565.0,84541.0,0.26422233]
[1731345077299,0.00236561,84565.0,84549.0,0.26422233]
[1731345077506,0.00236561,84570.0,84542.0,0.14294075]
[1731345077764,0.11994075,84565.0,84535.0,0.03917144]
[1731345077974,0.00236561,84564.0,84536.0,0.14294075]
[1731345078840,0.00236561,84570.0,84544.0,0.26422233]
[1731345079062,0.01552217,84570.0,84544.0,0.38416308]
[1731345079508,0.01552217,84570.0,84545.0,0.0782]
[1731345079509,0.00236561,84570.0,84545.0,0.0782]
[1731345079725,0.2,84580.0,84563.0,0.26422233]
[1731345080101,0.2,84580.0,84555.0,0.26422233]
[1731345080318,0.00236561,84579.0,84556.0,0.14294075]
[1731345080533,0.12230636,84586.0,84556.0,0.14294075]
[1731345081154,0.12230636,84586.0,84557.0,0.00236479]
[1731345081358,0.2,84579.0,84558.0,0.11994075]
[1731345081571,0.2,84579.0,84559.0,0.02536473]
[1731345081780,0.2,84579.0,84559.0,0.14530548]
[1731345081992,0.00236561,84578.0,84555.0,0.30261751]
[1731345082161,0.00236561,84578.0,84555.0,0.42255826]
[1731345082427,0.11994075,84577.0,84555.0,0.03839518]
[1731345082788,0.00236561,84576.0,84546.0,0.023]
[1731345083002,0.200848,84580.0,84557.0,0.023]
[1731345083231,0.200848,84580.0,84559.0,0.023]
[1731345083433,0.00236561,84579.0,84554.0,0.26422233]
[1731345083649,0.00236561,84579.0,84554.0,0.38416308]
[1731345083854,0.11994075,84578.0,84554.0,0.26422233]
[1731345084078,0.00236561,84577.0,84554.0,0.26422233]
[1731345084280,0.15225619,84576.0,84554.0,0.26422233]
[1731345084486,0.00236561,84575.0,84554.0,0.26422233]
[1731345084708,0.11994075,84574.0,84554.0,0.26422233]
[1731345084910,0.00236561,84573.0,84554.0,0.26422233]
[1731345085139,0.11994075,84572.0,84545.0,0.38013219]
[1731345085400,0.01782779,84571.0,84546.0,0.11994075]
[1731345085603,0.00236561,84571.0,84546.0,0.11994075]
[1731345085829,0.16914075,84570.0,84545.0,0.03770986]
[1731345086046,0.00736561,84569.0,84545.0,0.03770986]
[1731345086281,0.20394075,84568.0,84536.0,0.001696]
[1731345086501,0.04841625,84567.0,84554.0,0.03876]
[1731345086720,0.11994075,84566.0,84554.0,0.03876]
[1731345086924,0.00236561,84565.0,84554.0,0.03876]
[1731345087098,0.11994075,84564.0,84554.0,0.03876]
[1731345087353,0.00236561,84563.0,84554.0,0.03876]
[1731345087572,0.0506,84561.0,84554.0,0.03876]
[1731345087788,0.12230636,84560.0,84554.0,0.03876]
[1731345091100,0.00236561,84560.0,84554.0,0.03876]
[1731345091319,0.00236561,84566.0,84555.0,0.00578064]
[1731345091528,0.0485,84576.0,84554.0,0.03876]
[1731345091529,0.00236561,84575.0,84554.0,0.03876]
[1731345091762,0.14498619,84574.0,84554.0,0.0770966]
[1731345091992,0.00236561,84573.0,84554.0,0.0770966]
[1731345092198,0.11994075,84572.0,84554.0,0.0770966]
[1731345092407,0.00236561,84571.0,84554.0,0.0770966]
[1731345092615,0.1273,84591.0,84567.0,0.26422233]
[1731345092796,0.17770512,84608.0,84579.0,0.26422233]
[1731345093040,0.17770512,84608.0,84568.0,0.20184075]
[1731345093041,0.00236561,84607.0,84571.0,0.26422233]
[1731345093238,0.00236561,84607.0,84572.0,0.11994075]
[1731345093750,0.00236561,84607.0,84573.0,0.00236432]
[1731345093957,0.00236561,84607.0,84574.0,0.12230508]
[1731345094169,0.00236561,84607.0,84575.0,0.00236433]
[1731345094367,0.00236561,84607.0,84575.0,0.12230508]
[1731345094577,0.00015205,84580.0,84575.0,0.12230508]
[1731345094774,0.00015205,84580.0,84575.0,0.11994075]
[1731345094950,0.00015205,84580.0,84576.0,0.00236433]
[1731345095134,0.00015205,84580.0,84568.0,0.0819]
[1731345095341,0.023,84586.0,84567.0,0.03876]
[1731345095548,0.023,84587.0,84567.0,0.03876]
[1731345096533,0.14294075,84587.0,84567.0,0.03876]
[1731345096796,0.02336666,84588.0,84567.0,0.07739554]
[1731345096797,0.023,84585.0,84567.0,0.07739554]
[1731345096998,0.11994075,84584.0,84567.0,0.07739554]
[1731345097552,0.023,84583.0,84567.0,0.07739554]
[1731345097739,0.023,84581.0,84567.0,0.07739554]
[1731345097944,0.023,84579.0,84567.0,0.07739554]
[1731345102269,0.023,84579.0,84567.0,0.04739554]
[1731345103289,0.0484,84587.0,84567.0,0.04739554]
[1731345103290,0.023,84586.0,84572.0,0.26422233]
[1731345103492,0.023,84586.0,84574.0,0.03888]
[1731345103756,0.0484,84587.0,84574.0,0.03888]
[1731345103757,0.023,84587.0,84574.0,0.03888]
[1731345107270,0.023,84585.0,84574.0,0.03888]
[1731345107541,0.11994075,84584.0,84574.0,0.03888]
[1731345107700,0.023,84583.0,84574.0,0.03888]
[1731345107915,0.023,84581.0,84574.0,0.03888]
[1731345108191,0.000848,84587.0,84574.0,0.03888]
[1731345108391,0.0461,84599.0,84574.0,0.03888]
[1731345108392,0.01261335,84588.0,84578.0,0.26422233]
[1731345110400,0.01261335,84588.0,84586.0,0.26422233]
[1731345110799,0.01261335,84588.0,84578.0,0.26422233]
[1731345111539,0.01261335,84588.0,84579.0,0.00236433]
[1731345111770,0.01261335,84588.0,84575.0,0.11994075]
[1731345112153,0.01261335,84588.0,84574.0,0.03888]
[1731345113072,0.01261335,84588.0,84585.0,0.03888]
[1731345113271,0.023,84587.0,84585.0,0.03888]
[1731345114731,0.22514075,84586.0,84585.0,0.03888]
[1731345118263,0.023,84587.0,84585.0,0.03888]
[1731345118461,0.14294075,84587.0,84585.0,0.03888]
[1731345119470,0.000848,84587.0,84585.0,0.03888]
[1731345123331,0.000848,84587.0,84578.0,0.03806314]
[1731345123332,0.078,84607.0,84589.0,0.02632865]
[1731345123697,0.11994075,84593.0,84589.0,0.02632865]
[1731345124175,0.005,84606.0,84589.0,0.02632865]
[1731345124610,0.005,84606.0,84589.0,0.06466529]
[1731345125004,0.005,84606.0,84589.0,0.02632865]
[1731345126173,0.0455,84592.0,84589.0,0.02632865]
[1731345126400,0.11994075,84591.0,84589.0,0.02632865]
[1731345126621,0.1061,84590.0,84589.0,0.02632865]
[1731345126771,0.23104075,84590.0,84589.0,0.02632865]
[1731345127224,0.023,84575.0,84554.0,0.001696]
[1731345127437,0.023,84573.0,84554.0,0.001696]
[1731345127588,0.023,84571.0,84554.0,0.001696]
[1731345127786,0.023,84569.0,84554.0,0.001696]
[1731345127991,0.14294075,84568.0,84564.0,0.03870066]
[1731345128412,0.15723483,84568.0,84554.0,0.001696]
[1731345128612,0.14294075,84568.0,84554.0,0.001696]
[1731345128821,0.14294075,84568.0,84541.0,0.26335833]
[1731345129284,0.023,84567.0,84535.0,0.083998]
[1731345129498,0.16564075,84568.0,84535.0,0.083998]
[1731345129499,0.023,84565.0,84541.0,0.03911449]
[1731345129698,0.023,84565.0,84535.0,0.001698]
[1731345129699,0.11994075,84564.0,84535.0,0.001698]
[1731345129917,0.01886408,84563.0,84544.0,0.26422233]
[1731345130125,0.0457,84568.0,84544.0,0.26422233]
[1731345130346,0.17770512,84574.0,84545.0,0.12230609]
[1731345130540,0.11994075,84573.0,84545.0,0.12230609]
[1731345130777,0.11994075,84573.0,84545.0,0.11994075]
[1731345130930,0.023,84572.0,84536.0,0.001696]
[1731345131131,0.16081534,84571.0,84538.0,0.0596708]
[1731345131373,0.16081534,84571.0,84540.0,0.05961749]
[1731345131585,0.16081534,84571.0,84544.0,0.26422233]
[1731345131789,0.16081534,84571.0,84551.0,0.0055709]
[1731345132418,0.11994075,84571.0,84551.0,0.0055709]
[1731345133055,0.023,84570.0,84551.0,0.0055709]
[1731345133280,0.11994075,84569.0,84551.0,0.0055709]
[1731345135468,0.11994075,84569.0,84551.0,0.04365282]
[1731345136424,0.023,84568.0,84551.0,0.04365282]
[1731345136633,0.023,84566.0,84551.0,0.04365282]
[1731345136855,0.11994075,84565.0,84551.0,0.04365282]
[1731345137885,0.023,84575.0,84552.0,0.00603044]
[1731345138051,0.0831,84576.0,84552.0,0.00301522]
[1731345138263,0.11994075,84575.0,84553.0,0.00236507]
[1731345138521,0.01199408,84574.0,84553.0,0.00236507]
[1731345138881,0.045,84581.0,84553.0,0.00236507]
[1731345138993,0.045,84581.0,84551.0,0.30787515]
[1731345138994,0.11994075,84580.0,84551.0,0.30787515]
[1731345139205,0.11994075,84580.0,84552.0,0.11994075]
[1731345139402,0.0808,84586.0,84560.0,0.26422233]
[1731345139621,0.29764587,84585.0,84566.0,0.26422233]
[1731345139814,0.11994075,84585.0,84566.0,0.26422233]
[1731345140263,0.11994075,84585.0,84552.0,0.11994075]
[1731345140264,0.02207888,84584.0,84552.0,0.11994075]
[1731345140469,0.14201963,84584.0,84552.0,0.11994075]
[1731345141381,0.17770512,84582.0,84552.0,0.11994075]
[1731345141556,0.14201963,84584.0,84557.0,0.26422233]
[1731345141755,0.14201963,84584.0,84558.0,0.11994075]
[1731345141977,0.02428676,84583.0,84559.0,0.00236485]
[1731345142182,0.11994075,84584.0,84559.0,0.00236485]
[1731345142386,0.11994075,84584.0,84558.0,0.11994075]
[1731345143389,0.14294075,84583.0,84557.0,0.26422233]
[1731345143950,0.000848,84587.0,84558.0,0.12230583]
[1731345144172,0.11994075,84586.0,84572.0,0.26422233]
[1731345144318,0.000848,84587.0,84572.0,0.26422233]
[1731345144319,0.000848,84587.0,84573.0,0.00236452]
[1731345144690,0.000848,84587.0,84581.0,0.26422233]
[1731345145646,0.000848,84587.0,84582.0,0.12718147]
[1731345145843,0.000848,84587.0,84582.0,0.38416308]
[1731345147291,0.000848,84587.0,84582.0,0.11994075]
[1731345147444,0.000848,84587.0,84574.0,0.26422233]
[1731345147445,0.0100848,84586.0,84574.0,0.26422233]
[1731345147652,0.000848,84587.0,84572.0,0.0809]
[1731345148019,0.000848,84587.0,84565.0,0.26422233]
[1731345148777,0.000848,84587.0,84566.0,0.00236475]
[1731345148980,0.000848,84587.0,84574.0,0.26422233]
[1731345149227,0.000848,84587.0,84583.0,0.26422233]
[1731345149429,0.000848,84587.0,84574.0,0.26422233]
[1731345150212,0.000848,84587.0,84565.0,0.30261613]
[1731345150430,0.11994075,84586.0,84565.0,0.26422233]
[1731345150716,0.023,84585.0,84555.0,0.26422233]
[1731345150836,0.023,84583.0,84555.0,0.26422233]
[1731345151042,0.023,84581.0,84555.0,0.26422233]
[1731345151249,0.023,84579.0,84555.0,0.26422233]
[1731345151472,0.10017888,84585.0,84555.0,0.26422233]